Cogmind - Beta 13 @@@ ROGUE MODE // 2024.05.16 @ 18:45:51 Player: KingCain Result: Destroyed by G-34 Mercenary with Small Laser Performance ------------- Evolutions (1) 500 Regions Visited (3) 600 Robots Destroyed (6) 30 Value Destroyed (107) 107 Prototype IDs (0) 0 Alien Tech Used (0) 0 Bonus (0) 0 TOTAL SCORE: 1237 Bonus ------- None Cogmind --------- Core Integrity 0/400 Matter 300/300 Energy 100/100 System Corruption 4% Temperature Cool (6) Movement Core (50) Location -9/Storage Parts ------- > --- POWER (2) -------- (None) > --- PROPULSION (2) --- (None) > --- UTILITY (2) ------ (None) > --- WEAPON (3) ------- (None) > --- INVENTORY (5) ---- Aluminum Leg Aluminum Leg Assault Rifle Light Assault Rifle Peak State ------------ > --- POWER ------------ Light Ion Engine Light Ion Engine > --- PROPULSION ------- Wheel Wheel > --- UTILITY ---------- Small Matter Pod Light Armor Plating > --- WEAPON ----------- Medium Laser Assault Rifle Grenade Launcher > --- INVENTORY -------- Aluminum Leg Aluminum Leg Light Assault Rifle [Rating: 9] Favorites ----------- Power Light Ion Engine Engine Light Ion Engine Propulsion Wheel Wheel Wheel Utility Small Matter Pod Storage Small Matter Pod Protection Light Armor Plating Weapon Medium Laser Energy Gun Medium Laser Energy Cannon Beam Cannon Ballistic Gun Assault Rifle Launcher Grenade Launcher Build | -11 -10 -9 -9 ------- Run | Yrd Mat Mat Sto Slots Evolved 2 | . . 2 . Power 1 | . . 1 . Propulsion . | . . . . Utility . | . . . . Weapon 1 | . . 1 . Parts Attached 10 | 4 2 3 1 Power 2 | . 1 1 . Engine 2 | . 1 1 . Core . | . . . . Reactor . | . . . . Propulsion 2 | 2 . . . Treads . | . . . . Leg . | . . . . Wheel 2 | 2 . . . Hover . | . . . . Flight . | . . . . Utility 2 | . 1 1 . Device . | . . . . Storage 1 | . 1 . . Processor . | . . . . Hackware . | . . . . Protection 1 | . . 1 . Artifact . | . . . . Weapon 4 | 2 . 1 1 Energy Gun 1 | 1 . . . Energy Cannon 1 | . . . 1 Ballistic Gun 1 | 1 . . . Ballistic Cannon . | . . . . Launcher 1 | . . 1 . Special Weapon . | . . . . Impact Weapon . | . . . . Slashing Weapon . | . . . . Piercing Weapon . | . . . . Special Melee Weapon . | . . . . Unidentified Prototypes . | . . . . Parts Lost 8 | . . . 8 Power 2 | . . . 2 Propulsion 2 | . . . 2 Utility 1 | . . . 1 Weapon 3 | . . . 3 Highest Loss Streak 8 | . . . 8 To Critical Strikes . | . . . . Average Slot Usage (%) 78 | . 68 91 85 Engine 14 | . 8 22 18 Wheel 23 | . 28 22 18 Storage 7 | . 2 11 11 Protection 4 | . . 5 7 Energy Gun 12 | . 14 11 10 Energy Cannon 4 | . . . 9 Ballistic Gun 7 | . 14 11 . Launcher 4 | . . 8 7 Naked Turns 1 | . . . 1 Heaviest Build 18 | 4 8 17 18 Greatest Support 20 | 20 20 20 20 Greatest Overweight (x) 1 | . . . 1 Average Overweight (x) . | . . . . Largest Inventory Capacity 5 | 5 5 5 5 Average Capacity 5 | 5 5 5 5 Most Carried 5 | 4 5 4 4 Average Carried 3 | 2 4 3 3 Final Capacity 5 | 5 5 5 5 Final Carried 5 | 4 5 3 4 Class Distribution -------------------- 64% | Mutant 35% | Tank Dominant Class ---------------- Mutant | -10/Materials Tank | -9/Materials Tank | -9/Storage Resources | -11 -10 -9 -9 ----------- Run | Yrd Mat Mat Sto Matter Collected 291 | 234 57 . . Remotely . | . . . . Salvage Created 165 | . 57 . 108 Parts 15 | . 5 . 10 Haulers Intercepted . | . . . . Recyclers Shooed . | . . . . Parts Field Recycled . | . . . . Retrieved Matter . | . . . . Parts Self-Destructed . | . . . . Prevented . | . . . . Kills | -11 -10 -9 -9 ------- Run | Yrd Mat Mat Sto Combat Hostiles Destroyed 4 | . 3 . 1 Guns 3 | . 3 . . Cannons 1 | . . . 1 Classes Destroyed 4 | . 1 . 3 Recycler 1 | . . . 1 Operator 1 | . . . 1 Swarmer 3 | . 3 . . Sentry 1 | . . . 1 Best Kill Streak 3 | . 3 . 3 Combat Bots Only 3 | . 3 . 1 Max Kills in Single Turn 1 | . 1 . 1 Gunslinging . | . . . . Exploded . | . . . . Melee . | . . . . Uniques/NPCs Destroyed . | . . . . Combat | -11 -10 -9 -9 -------- Run | Yrd Mat Mat Sto Hostile Shots Fired 72 | 2 11 . 59 Missed 24 | 1 4 . 19 Damage Taken 959 | 11 66 . 882 Core 421 | . 12 . 409 Absorbed by Shields . | . . . . Core Remaining (%) 97 | 100 95 . . Volleys Fired 12 | . 3 . 9 Largest 3 | . 2 . 3 Hottest 140 | . 70 . 140 Shots Fired 26 | . 6 . 20 Gun 15 | . 6 . 9 Cannon 9 | . . . 9 Launcher 2 | . . . 2 Special . | . . . . Kinetic 3 | . 3 . . Thermal 21 | . 3 . 18 Explosive 2 | . . . 2 Electromagnetic . | . . . . Robot Hit Streak 3 | . 2 . 3 Robot Miss Streak 2 | . 2 . 2 Penetration Max . | . . . . Secondary Targets . | . . . . Shots Hit Robots 9 | . 3 . 6 Core Hits 9 | . 3 . 6 Critical Kills . | . . . . Critical Parts Destroyed . | . . . . Critical Strikes . | . . . . Melee Attacks . | . . . . Impact . | . . . . Slashing . | . . . . Piercing . | . . . . Sneak Attacks . | . . . . Combat Hostiles . | . . . . Follow-up Attacks . | . . . . Damage Inflicted 258 | . 67 . 191 Guns 105 | . 67 . 38 Cannons 69 | . . . 69 Explosions 84 | . . . 84 Melee . | . . . . Ramming . | . . . . Kinetic 28 | . 28 . . Thermal 146 | . 39 . 107 Explosive 84 | . . . 84 Electromagnetic . | . . . . Impact . | . . . . Slashing . | . . . . Piercing . | . . . . Highest Corruption 4 | . . . 4 Average Corruption 4 | . . . 4 Corruption Purged . | . . . . Corruption Blocked . | . . . . Effects 1 | . . . 1 Message Errors 1 | . . . 1 Overload Shots . | . . . . Overflow Damage . | . . . . Projectiles . | . . . . Explosions . | . . . . Melee . | . . . . Knockbacks . | . . . . Impact . | . . . . Kinetic . | . . . . Secondary . | . . . . Self-Inflicted Damage 28 | . . . 28 Shots 1 | . . . 1 Rammed . | . . . . Targets Rammed . | . . . . Kicked . | . . . . Crushed . | . . . . Highest Temperature 382 | . 21 . 382 Average Temperature 138 | . 16 . 152 Received Heat Transfer 243 | 6 18 . 219 Effects 3 | . . . 3 Shutdowns 1 | . . . 1 Short Circuit 1 | . . . 1 Damage (minor) 1 | . . . 1 Siege Activations . | . . . . Robots Corrupted . | . . . . Combat Hostiles . | . . . . Parts Fried . | . . . . Impact Corruptions . | . . . . Robots Melted . | . . . . Combat Hostiles . | . . . . Parts Melted . | . . . . Heat Transferred 370 | . 111 . 259 Parts Sabotaged . | . . . . Parts Stolen . | . . . . Parts Stripped . | . . . . Power Chain Reactions . | . . . . Alert | -11 -10 -9 -9 ------- Run | Yrd Mat Mat Sto Peak Influence 221 | . 70 29 221 Initial 29 | . . 29 11 Average 60 | . 49 29 104 Maximum Alert Level 1 | . . . 1 Low Security (%) 93 | 100 100 100 83 Level 1 6 | . . . 16 Level 2 . | . . . . Level 3 . | . . . . Level 4 . | . . . . Level 5 . | . . . . High Security . | . . . . Max Security . | . . . . Squads Dispatched 1 | . . . 1 Investigation . | . . . . Extermination . | . . . . Reinforcement 1 | . . . 1 Assault . | . . . . Garrison . | . . . . Intercept . | . . . . Searches Triggered . | . . . . Construction Impeded . | . . . . Haulers Reinforced . | . . . . Active Scanning Responses . | . . . . Cargo Convoy Interrupts . | . . . . Stealth | -11 -10 -9 -9 --------- Run | Yrd Mat Mat Sto Distress Signals 2 | . . . 2 Communications Jammed . | . . . . Distress Signals . | . . . . Times Spotted 21 | 1 5 . 15 Peak Tracking Total 13 | 1 3 . 13 Tactical Retreats 3 | . . . 3 Traps | -11 -10 -9 -9 ------- Run | Yrd Mat Mat Sto Traps Triggered 1 | . . . 1 Indirectly . | . . . . Trap Hack Attempts . | . . . . Triggered . | . . . . Disarmed . | . . . . Reprogrammed . | . . . . Reused . | . . . . Traps Extracted . | . . . . Installed . | . . . . Triggered . | . . . . Machines | -11 -10 -9 -9 ---------- Run | Yrd Mat Mat Sto Machines Disabled 1 | . . . 1 Max in Single Turn 1 | . . . 1 Machines Repaired . | . . . . Machines Dismantled . | . . . . Machines Sabotaged . | . . . . Overloaded Fab Kills . | . . . . Hacking | -11 -10 -9 -9 --------- Run | Yrd Mat Mat Sto Machines Accessed 2 | . . . 2 Terminals 2 | . . . 2 Fabricators . | . . . . Repair Stations . | . . . . Recycling Units . | . . . . Scanalyzers . | . . . . Garrison Access . | . . . . Total Hacks 5 | . . . 5 Successful 3 | . . . 3 Failed 2 | . . . 2 Catastrophic 1 | . . . 1 Database Lockouts . | . . . . Manual . | . . . . Terminals 5 | . . . 5 Fabricators . | . . . . Repair Stations . | . . . . Recycling Units . | . . . . Scanalyzers . | . . . . Garrison Access . | . . . . Terminal Hacks 3 | . . . 3 Record 3 | . . . 3 Fabricator Hacks . | . . . . Repair Station Hacks . | . . . . Recycling Unit Hacks . | . . . . Scanalyzer . | . . . . Garrison Access Hacks . | . . . . Unauthorized Hacks . | . . . . Terminals . | . . . . Fabricators . | . . . . Repair Stations . | . . . . Recycling Units . | . . . . Scanalyzers . | . . . . Garrison Access . | . . . . Data Cores Recovered 1 | . . . 1 Used . | . . . . Hacking Detections 2 | . . . 2 Full Trace Events 1 | . . . 1 Feedback Events . | . . . . Feedback Blocked . | . . . . Robot Schematics Acquired . | . . . . Robots Built . | . . . . Authchips . | . . . . Time . | . . . . Total Robot Build Rating . | . . . . Part Schematics Acquired . | . . . . Parts Built . | . . . . Authchips . | . . . . Time . | . . . . Total Part Build Rating . | . . . . Parts Repaired . | . . . . Time . | . . . . Parts Recycled . | . . . . Recycled Matter . | . . . . Retrieved Matter . | . . . . Retrieved Components . | . . . . Parts Scanalyzed . | . . . . Part Schematics Acquired . | . . . . Parts Damaged . | . . . . Bothacking | -11 -10 -9 -9 ------------ Run | Yrd Mat Mat Sto Used RIF Installer . | . . . . Robots Hacked . | . . . . Non-combat . | . . . . Combat . | . . . . Robot Hacks Applied . | . . . . Relay Couplers Released . | . . . . Fabnet Peak Effective % . | . . . . Robots Rewired . | . . . . Allies Hacked . | . . . . Hacks Repelled . | . . . . Allies | -11 -10 -9 -9 -------- Run | Yrd Mat Mat Sto Total Allies . | . . . . Largest Group . | . . . . Highest-Rated Group . | . . . . Highest-Rated Ally . | . . . . Total Orders . | . . . . Ally Attacks . | . . . . Total Damage . | . . . . Kills . | . . . . Allies Corrupted . | . . . . Allies Melted . | . . . . Intel | -11 -10 -9 -9 ------- Run | Yrd Mat Mat Sto Robot Analysis Total . | . . . . Derelict Logs Recovered . | . . . . Drone Launches . | . . . . Drone Recoveries . | . . . . Exploration | -11 -10 -9 -9 ------------- Run | Yrd Mat Mat Sto Turns Passed 442 | 75 163 34 170 Spaces Moved 468 | 92 186 38 152 Core 30 | 30 . . . Treads . | . . . . Legs . | . . . . Wheels 438 | 62 186 38 152 Hover . | . . . . Flight . | . . . . Fastest Speed 50 | 50 80 80 80 Average Speed 78 | 70 80 80 80 Slowest Speed 95 | 80 80 80 95 Overloaded Moves . | . . . . Propulsion Burnouts . | . . . . Robots Hopped . | . . . . Cave-ins Triggered 1 | . . . 1 Exploration Rate (%) 16 | 6 24 4 33 Regions Visited 3 Branch Regions 1 Pre-discovered Areas . | . . . . Known Exits Taken . | . . . . Unknown Exits Taken 3 | 1 1 1 . Scrap Searched . | . . . . Spaces Dug . | . . . . Terrain Destroyed 10 | . . . 10 Melee . | . . . . Projectile . | . . . . AOE 10 | . . . 10 Terrain Rammed . | . . . . Walls Destroyed . | . . . . Machines Disabled . | . . . . Actions | -11 -10 -9 -9 --------- Run | Yrd Mat Mat Sto Total 515 | 100 193 40 182 Wait 18 | . . . 18 Move 465 | 91 185 37 152 Hop . | . . . . Pick Up 8 | 5 2 . 1 Fast Attach 6 | 3 2 1 . Attach 4 | 1 . 2 1 Detach 1 | . . . 1 Swap . | . . . . Drop 1 | . 1 . . Fire 12 | . 3 . 9 Melee . | . . . . Ram . | . . . . Kick . | . . . . Crush . | . . . . Escape Stasis . | . . . . Rewire . | . . . . Trap . | . . . . Miscellaneous . | . . . . Route ------- -11/Scrapyard -10/Materials -9/Materials -9/Storage History --------- Turn | Location | Event 2 | -11/Scrapyard | Met Revision 17 66 | -11/Scrapyard | Discovered new exit (range 8) 76 | -11/Scrapyard | Entered Materials 158 | -10/Materials | Discovered new exit (range 8) 239 | -10/Materials | Entered another Materials area 239 | -9/Materials | Evolved 2 slots: Power x1, Weapon x1 242 | -9/Materials | Discovered new exit (range 7) 273 | -9/Materials | Entered Storage 395 | -9/Storage | Crushed by falling debris 431 | -9/Storage | Core integrity fell below 50% 441 | -9/Storage | Core integrity fell below 20% 443 | -9/Storage | Destroyed by G-34 Mercenary with Small Laser Last Messages --------------- 00412_ Broken Lgt. Ion Engine destroyed. 00414_ Overheating: Beam Cannon damaged (-20). 00423_ Triggered EMP Trap. 00423_ A bubble of electromagnetic force engulfs the area. 00423_ Door malfunctions. 00423_ EMP Trap short circuited. 00423_ A bubble of electromagnetic force engulfs the area. 00423_ Lgt. Ion Engine destroyed. 00426_ C-30 ARC bursts open, deploying its payload. 00426_ L-31 Rogue unfolds itself. 00426_ G-34 Mercenary unfolds itself. 00432_ Wheel destroyed. 00436_ Med. Laser destroyed. 00439_ M7FCPU/&NDPFC0IVPXKNNRHQ&%IX9FNFT 00439_ Beam Cannon destroyed. 00442_ Sml. Matter Pod severed. 00442_ W-16 Scout sends out distress signal. Map ----- +----------------------------------------------------+ | ??????# #????????" """ #???????????????????? | | ??????# #????????" """ #????????????????????? | | ??????+ #????????" """ #????????????????????? | | ??????# #????????! #????????????????????? | | ??????# #????####=* ###???????????????????? | | ??????# ###### % %! #???????????????????? | | ??????# %! #???????????????????? | | ??????# ##+######## """ #???????????????????? | | ??????# # [ ## """"???????????????????????? | | ??????# #! ]## "??????#???????????????????? | | ??????# # ! ! ## "????? #???????????????????? | | ??????# # ## "?"""" #???????????????????? | | ??????# ####+###### """ #???????????????????? | | ??????# # ## #???????????????????? | | ??????# # """ ######a##########?????????????? | | ??????# # "?"""" #???# +? #?????????????? | | ??????+ + "??????#???# #? #?????????????? | | ??????# # "??????????# g# #?????????????? | | ??????### # "??????????# Y # ??????????????? | | ????????# # ??????????# / ??????????????????? | | ????????# # ?????????#gY^#?????????????????????? | | ????????# # ????????#a ^#?????????????????????? | | ????????# #####????????# #?????????????????????? | | ????##??# #????????????# #?????????????????????? | | ????#"""# #????????????# #?????????????????????? | | ????#"R"# #????????????# @ #?????????????????????? | | ??###" "#/####?????????# l#?????????????????????? | | ??# T #?????????# r ????????????????????? | | ??## #?????????# ???????????????????? | | ?### """ #?????????# ??????????????????? | | ?#"" """ #?????????# g ????????????????? | | ?#"Y ]! """ #?????????# gg a"???????????????? | | ?#"" !! """ #?????????# ??????????????? | | ?### """ #?????????# g ?????????????? | | #### #?????????# % [!! #????????????? | | #####+##/######+#### # w! #????????????? | | ^ # !! #????????????? | | T # ??????????????? | | ^ #? ????????????????? | | #####/#########+#### #????????????????????? | | ##?? *????????????#####?????????????????????? | | #? """ #????????????????????????????????????? | | ## """ [ #????????????????????????????????????? | | # """ #????????????????????????????????????? | | ## #????????????????????????????????????? | | ## """ ""#????????????????????????????????????? | | #???"" T"#????????????????????????????????????? | | #????" ""#????????????????????????????????????? | | #???? ?????????????????????????????????????? | | ##########?????????????????????????????????????? | +----------------------------------------------------+ Best States ------------- Heat Dissipation 28 Energy Generation 15 Energy Capacity 150 Matter Stores 322 Matter Capacity 350 Sight Range 16 Terrain Scan Density 10 Armor Coverage 150 Evasion (%) 50 Item Schematics ----------------- None Robot Schematics ------------------ None Fabricated ------------ Nothing Alien Tech Used ----------------- None Achievements -------------- Unlikely Earthworm Challenges ------------ None Game ------ Seed SapperUtilityPerforator Manual? 0 Play Time 00:13:23 Cumulative 0.9 hours Start 2024.05.16 @ 18:32:20 End 2024.05.16 @ 18:45:51 Sessions 1 Manual Loads 0 Difficulty Rogue Special Mode None Game No. 2 Rogue 2 Adventurer 0 Explorer 0 Win Type - Total 0 Types 0/0/0/0/0/0/0/0/0 Lore% 0 Gallery% 3 Achievement% 2 Wizard Run 0 Options --------- Layout 1 ASCII 0 Keyboard 0 Movement Arrows Keybinds 0 Fullscreen 1 Font 24/Smallcaps Map View 25x17 Zoom Use 100% Tactical HUD 1 Map Filters NONE Filters NONE Steam 1 RUN: d8f65634-3b5d-4d1a-abcc-1377bef08630